bitfinex-derivatives/quotes_ETHF0:USTF0_20241020
["timestamp","ask_amount","ask_price","bid_price","bid_amount"]
[1729462403578,2.4383,2720.9,2719.7,3.2078]
[1729462403780,0.2941,2720.6,2719.9,0.29416]
[1729462403982,3.5019,2720.5,2719.9,0.29416]
[1729462404179,3.2078,2720.5,2719.7,3.2078]
[1729462404583,0.29412,2720.4,2719.7,3.50198]
[1729462404793,3.50197,2719.9,2719.2,0.29424]
[1729462404978,0.29419,2719.7,2719.1,3.2078]
[1729462405185,0.29419,2719.7,2719.0,0.29426]
[1729462405386,3.2078,2719.9,2718.9,2.71127]
[1729462405583,3.2078,2719.6,2718.9,2.417]
[1729462405783,3.2078,2719.6,2718.9,2.71127]
[1729462405784,3.50201,2719.6,2718.9,2.71127]
[1729462405984,0.29421,2719.5,2718.9,2.71127]
[1729462406187,3.2078,2719.6,2718.9,2.71127]
[1729462406188,3.502,2719.6,2719.0,0.29426]
[1729462406580,0.56704458,2719.4,2718.9,0.29427]
[1729462406785,0.23007913,2719.3,2718.8,0.29429]
[1729462407087,0.56703053,2719.4,2718.9,0.29427]
[1729462407276,0.23008683,2719.3,2718.7,2.4153]
[1729462407478,0.56703053,2719.5,2719.1,0.29425]
[1729462407680,0.29419,2719.7,2719.0,0.29426]
[1729462407977,0.29419,2719.7,2718.9,3.2078]
[1729462407978,3.77483053,2719.9,2718.6,3.2078]
[1729462408184,3.50201,2719.6,2718.9,0.29427]
[1729462408790,3.2078,2719.6,2718.6,3.2078]
[1729462409295,0.29419,2719.8,2719.0,0.29425]
[1729462409489,0.29419,2719.8,2719.1,0.29425]
[1729462409989,0.29419,2719.8,2718.9,3.2078]
[1729462409990,3.2078,2719.9,2719.5,0.2942]
[1729462410294,3.2078,2719.8,2719.2,3.50203]
[1729462410788,3.2078,2719.8,2719.3,0.29423]
[1729462410978,3.2078,2719.8,2719.2,3.2078]
[1729462410979,3.2078,2719.8,2719.2,3.50204]
[1729462411185,3.2078,2719.8,2719.3,0.29423]
[1729462411384,3.2078,2719.8,2719.2,3.2078]
[1729462411385,3.2078,2719.8,2719.7,0.29419]
[1729462411689,2.5141,2720.3,2720.0,0.29416]
[1729462411995,2.5141,2720.3,2719.9,0.29416]
[1729462412389,2.5141,2720.3,2719.8,0.29417]
[1729462412588,2.5141,2720.3,2720.0,0.29416]
[1729462412791,2.5141,2720.3,2719.9,0.29416]
[1729462413087,2.5141,2720.3,2720.0,0.29416]
[1729462413283,2.5141,2720.3,2719.9,0.29416]
[1729462413986,2.5141,2720.3,2719.7,3.2078]
[1729462414191,2.5141,2720.3,2720.0,0.29415]
[1729462414397,2.497,2720.7,2720.0,3.2078]
[1729462414584,3.2078,2721.0,2720.2,3.2078]
[1729462414791,2.2996,2721.1,2720.3,3.2078]
[1729462414989,2.2996,2721.1,2720.6,3.2078]
[1729462415493,2.2996,2721.1,2719.9,4.109]
[1729462415494,0.29407,2720.9,2720.3,3.2078]
[1729462415698,2.2996,2721.1,2720.0,3.2078]
[1729462415989,0.29406,2720.9,2720.2,0.29413]
[1729462416696,2.2996,2721.1,2720.0,3.2078]
[1729462416697,0.29409,2720.7,2720.0,3.50195]
[1729462416892,5.5439,2720.8,2720.0,3.2078]
[1729462417194,5.5439,2720.8,2720.2,0.29413]
[1729462417394,0.29409,2720.7,2720.0,3.50195]
[1729462417597,5.83798,2720.8,2720.1,0.29414]
[1729462417896,5.5439,2720.8,2720.3,0.29412]
[1729462418084,2.3361,2720.8,2720.0,3.2078]
[1729462418292,5.5074,2721.1,2720.0,3.2078]
[1729462418489,2.5219,2721.4,2720.3,3.2078]
[1729462418490,3.2078,2721.4,2720.3,3.2078]
[1729462418686,2.3407,2721.3,2720.3,3.2078]
[1729462418999,0.29403,2721.2,2720.5,0.2941]
[1729462419190,2.3407,2721.3,2720.3,3.2078]
[1729462419386,0.29405,2721.0,2720.4,0.29411]
[1729462419996,5.6424,2721.0,2720.3,3.2078]
[1729462420299,3.2078,2721.0,2720.2,0.29413]
[1729462420598,0.29407,2720.8,2720.1,0.29414]
[1729462420802,0.29407,2720.8,2720.2,0.29413]
[1729462420995,0.29406,2720.9,2720.2,0.29413]
[1729462421196,3.2078,2721.0,2720.4,0.29411]
[1729462421400,3.2078,2721.0,2720.1,3.2078]
[1729462421597,3.2078,2721.0,2720.4,3.50191]
[1729462422091,3.2078,2721.0,2720.4,3.2078]
[1729462422291,3.2078,2721.0,2720.4,3.50191]
[1729462422900,3.2078,2721.0,2720.4,3.2078]
[1729462423087,2.2878,2721.2,2720.4,3.2078]
[1729462423294,2.2878,2721.2,2720.7,0.29408]
[1729462423602,2.2878,2721.2,2720.6,0.29408]
[1729462424196,2.2878,2721.2,2720.7,0.29408]
[1729462424405,2.2878,2721.2,2720.6,0.29408]
[1729462424795,2.2878,2721.2,2720.4,3.2078]
[1729462425197,2.58183,2721.2,2720.6,0.29409]
[1729462425704,2.2878,2721.2,2720.6,0.29409]
[1729462425902,0.94959507,2721.3,2720.4,3.2078]
[1729462426099,6.03776544,2722.1,2721.3,0.29401]
[1729462426100,0.94959507,2721.8,2721.3,0.29401]
[1729462426300,0.94959507,2721.9,2721.3,0.29401]
[1729462426494,0.94959507,2721.9,2721.1,3.2078]
[1729462426695,0.29396,2721.8,2721.1,3.50183]
[1729462426895,3.2078,2721.8,2721.1,3.2078]
[1729462427097,4.15739507,2721.8,2721.1,3.2078]
[1729462427523,0.29397,2721.7,2721.1,3.2078]
[1729462427807,0.94959507,2721.7,2721.1,3.50184]
[1729462428196,0.94959507,2721.7,2721.1,3.2078]
[1729462428399,0.94959507,2721.6,2721.1,3.2078]
[1729462428709,0.94959507,2721.6,2721.1,3.50184]
[1729462429101,0.94959507,2721.6,2721.2,0.29403]
[1729462429308,0.94959507,2721.6,2721.1,3.2078]
[1729462430305,0.94959507,2721.6,2721.1,3.50184]
[1729462430503,0.94959507,2721.5,2721.1,3.50184]
[1729462431006,0.94959507,2721.6,2721.1,3.2078]
[1729462431203,0.94959507,2721.5,2721.1,3.2078]
[1729462431508,0.94959507,2721.5,2721.2,0.29402]
[1729462431799,0.94959507,2721.5,2721.1,3.2078]
[1729462432009,0.94959507,2721.5,2721.2,0.29402]
[1729462432195,0.94959507,2721.5,2721.4,0.29401]
[1729462432395,0.94959507,2721.5,2721.2,0.29402]
[1729462432593,0.94959507,2721.6,2721.1,3.2078]
[1729462432807,0.94959507,2721.6,2721.3,0.29401]
[1729462433206,0.94959507,2721.6,2721.4,0.294]
[1729462433506,0.94959507,2721.6,2721.1,3.2078]
[1729462433507,0.94959507,2721.7,2721.3,0.29401]
[1729462434212,0.94959507,2721.5,2721.3,0.29401]
[1729462434503,0.94959507,2721.5,2721.1,3.2078]
[1729462434707,0.94959507,2721.5,2721.3,0.29401]
[1729462434907,0.94959507,2721.5,2721.1,3.2078]
[1729462434908,0.94959507,2721.5,2721.2,0.29402]
[1729462435106,0.94959507,2721.5,2721.1,3.50183]
[1729462435308,0.94959507,2721.5,2721.1,3.2078]
[1729462435510,0.94959507,2721.5,2721.2,0.29403]
[1729462436008,0.94959507,2721.5,2721.3,0.29401]
[1729462436211,0.94959507,2721.5,2721.2,0.29402]
[1729462436399,0.94959507,2721.5,2721.1,3.2078]
[1729462436597,0.94959507,2721.4,2721.1,3.50183]
[1729462437105,0.94959507,2721.3,2721.1,3.2078]
[1729462437307,0.94959507,2721.5,2721.2,3.6744]
[1729462437512,0.95830547,2721.7,2721.4,3.2078]
[1729462437710,1.88664362,2721.9,2721.8,0.29396]
[1729462437711,0.95830547,2721.9,2721.8,0.29396]
[1729462437901,0.95830547,2721.9,2721.4,3.2078]
[1729462438103,0.95830547,2721.9,2721.2,2.4449]
[1729462438104,0.95830547,2721.7,2721.2,2.4449]
[1729462438314,0.95830547,2721.7,2721.6,0.29398]
[1729462438502,0.95830547,2721.8,2721.5,3.2078]
[1729462438706,0.95830547,2721.8,2721.7,0.29397]
[1729462440116,0.95830547,2721.8,2721.5,3.50179]
[1729462440314,0.95830547,2721.8,2721.5,3.2078]
[1729462440504,0.29399,2721.6,2721.0,0.29405]
[1729462440704,2.3538,2721.8,2721.3,0.17506575]
[1729462440911,2.4814,2722.0,2721.8,0.17506575]
[1729462441108,2.4814,2722.0,2721.9,0.17506575]
[1729462441515,3.2078,2722.3,2721.9,0.46901575]
[1729462441710,3.2078,2722.3,2722.0,0.17506575]
[1729462443415,0.95733127,2722.3,2722.0,0.17506575]
[1729462443718,0.95733127,2722.2,2721.6,3.2078]
[1729462444018,0.29394,2722.0,2721.7,0.17506575]
[1729462444217,1.25127127,2722.0,2721.7,0.17506575]
[1729462444406,10.21333127,2721.9,2720.8,4.766]
[1729462444610,0.29401,2721.4,2721.1,0.17506575]
[1729462444810,0.95733127,2721.5,2720.9,0.17506575]
[1729462445014,4.64379691,2721.6,2720.9,0.17506575]
[1729462445015,4.16513127,2721.3,2720.9,0.17506575]
[1729462445215,4.16513127,2721.3,2720.7,3.2078]
[1729462445216,0.29405,2721.1,2720.7,3.2078]
[1729462445424,2.3746,2721.0,2720.7,3.38286575]
[1729462445716,2.3746,2721.0,2720.7,3.2078]
[1729462445717,2.66865,2721.0,2720.7,3.2078]
[1729462446023,4.16513127,2720.8,2720.1,3.2078]
[1729462446222,0.29412,2720.4,2720.2,0.17506575]
[1729462446423,0.29414,2720.2,2720.1,3.2078]
[1729462446809,0.29414,2720.2,2719.7,3.2078]
[1729462446810,3.676,2720.2,2719.7,3.2078]
[1729462447014,2.4264,2720.4,2719.9,0.17506575]
[1729462447315,2.2897,2720.2,2719.9,0.17506575]
[1729462448023,0.95733127,2720.4,2720.1,0.17506575]
[1729462448218,3.24703127,2720.4,2720.2,0.17506575]
[1729462448523,2.2897,2720.4,2720.3,0.17506575]
[1729462449219,0.95733127,2720.5,2720.3,0.17506575]
[1729462449420,0.95733127,2720.5,2720.4,0.17506575]
[1729462451427,1.43599691,2720.5,2720.4,0.17506575]
[1729462451728,1.43599691,2720.6,2720.4,0.17506575]
[1729462451926,0.95829119,2720.5,2719.7,3.2078]
[1729462452123,0.95829119,2720.5,2719.9,0.29416]
[1729462452419,1.43599691,2720.6,2720.4,0.17506575]
[1729462452623,1.43599691,2720.6,2720.5,0.17506575]
[1729462452624,1.43772301,2720.6,2720.5,0.17506575]
[1729462453415,0.29408,2720.8,2720.5,0.17506575]
[1729462453416,1.91466255,2720.8,2720.5,0.17506575]
[1729462453615,0.95869411,2720.6,2720.0,3.2078]
[1729462453827,0.95869411,2720.6,2720.4,0.29411]
[1729462454019,0.95869411,2720.6,2720.5,0.17506575]
[1729462454522,1.43804205,2720.6,2720.5,0.17506575]
[1729462455417,5.60112819,2720.9,2720.5,0.17506575]
[1729462455418,1.91466255,2720.7,2720.5,0.17506575]
[1729462455730,1.91466255,2720.7,2720.1,4.9336]
[1729462455928,1.91466255,2720.7,2720.6,0.17506575]
[1729462456225,1.91466255,2720.8,2720.6,0.17506575]
[1729462456423,5.60112819,2720.9,2720.7,0.17506575]
[1729462456920,5.60112819,2720.9,2720.1,4.9336]
[1729462456921,1.91968841,2720.9,2720.8,0.46913575]
[1729462457117,1.43970933,2720.9,2720.8,0.46913575]
[1729462457329,5.11490933,2720.9,2720.4,0.29411]
[1729462457628,5.11490933,2720.9,2720.2,3.2078]
[1729462457629,1.43970933,2720.7,2720.6,0.17506575]
[1729462458121,1.44032945,2720.7,2720.6,0.46915575]
[1729462458422,0.96023197,2720.7,2720.6,0.46915575]
[1729462459725,0.96023197,2720.7,2720.6,0.17506575]
[1729462460033,1.44032945,2720.7,2720.6,0.17506575]
[1729462460219,1.91968841,2720.8,2720.5,3.2078]
[1729462460419,0.2941,2720.6,2720.1,5.6946]
[1729462460615,1.44101014,2720.4,2720.3,0.17506575]
[1729462460823,5.12748841,2720.4,2719.7,3.2078]
[1729462461025,0.9608196,2720.0,2719.9,0.17506575]
[1729462461228,1.4412294,2720.0,2719.9,0.17506575]
[1729462462222,0.96059817,2720.0,2719.9,0.46923575]
[1729462462427,0.96059817,2720.1,2719.9,0.46923575]
[1729462462730,0.96059817,2720.1,2720.0,0.46922575]
[1729462462922,1.9216392,2720.6,2720.1,0.17506575]
[1729462463122,1.9216392,2720.7,2720.5,0.17506575]
[1729462463534,1.9216392,2720.8,2720.5,0.17506575]
[1729462464028,1.9216392,2720.7,2720.5,0.17506575]
[1729462465823,3.676,2720.6,2720.1,3.2078]
[1729462466024,0.29412,2720.4,2720.1,0.17506575]
[1729462466325,1.9216392,2720.4,2720.1,0.17506575]
[1729462467435,1.9216392,2720.4,2719.7,3.2078]
[1729462467638,1.9216392,2720.5,2720.3,0.17506575]
[1729462467936,1.9216392,2720.5,2720.1,3.50194]
[1729462468122,1.9216392,2720.5,2720.4,0.17506575]
[1729462468428,0.29408,2720.8,2720.4,0.17506575]
[1729462468429,1.9216392,2720.6,2720.4,0.17506575]
[1729462470032,1.9216392,2720.5,2719.9,3.2078]
[1729462470334,1.9216392,2720.5,2720.2,0.17506575]
[1729462472027,1.9216392,2720.5,2720.4,0.17506575]
[1729462472229,1.9216392,2720.6,2720.3,0.17506575]
[1729462472435,1.9216392,2720.5,2720.3,0.17506575]
[1729462472637,2.2157392,2720.6,2720.3,0.17506575]
[1729462473036,1.9216392,2720.6,2720.3,0.17506575]
[1729462473234,1.9216392,2720.5,2720.3,0.17506575]
[1729462473632,1.9216392,2720.6,2720.3,0.17506575]
[1729462475437,1.9216392,2720.6,2720.3,0.46918575]
[1729462475938,1.9216392,2720.6,2720.3,0.17506575]
[1729462476239,1.9216392,2720.6,2720.4,0.17506575]
[1729462477738,1.9216392,2720.6,2720.4,0.46917575]
[1729462477937,1.9216392,2720.8,2720.6,0.29409]
[1729462478141,1.9216392,2721.2,2720.7,0.17506575]
[1729462478333,5.60112819,2721.4,2721.1,0.46910575]
[1729462478334,1.9216392,2721.3,2721.1,0.46910575]
[1729462478641,1.9216392,2721.3,2721.2,0.17506575]
[1729462479140,1.9216392,2721.3,2721.2,0.46909575]
[1729462479534,1.9216392,2721.3,2721.2,0.17506575]
[1729462479740,3.2078,2721.4,2721.2,0.17506575]
[1729462479741,1.9216392,2721.4,2721.3,0.29402]
[1729462479931,1.9216392,2721.7,2721.3,3.38286575]
[1729462480146,1.9216392,2722.0,2721.7,0.17506575]
[1729462480442,3.64453947,2722.6,2721.9,0.17506575]
[1729462480443,1.9216392,2722.2,2721.9,0.17506575]
[1729462480644,1.9216392,2722.1,2722.0,0.17506575]
[1729462480842,1.9216392,2722.1,2721.9,0.17506575]
[1729462481142,1.9216392,2722.0,2721.8,0.17506575]
[1729462481536,2.2155792,2722.0,2721.8,0.17506575]
[1729462482036,4.5777792,2722.0,2721.8,0.17506575]
[1729462482237,4.2838392,2722.0,2721.8,0.17506575]
[1729462483245,4.2838392,2722.0,2721.3,0.29401]
[1729462483435,4.2838392,2722.0,2721.7,0.17506575]
[1729462483836,1.9216392,2721.9,2721.2,3.2078]
[1729462484136,1.9216392,2721.9,2721.7,0.17506575]
[1729462484540,8.8038392,2721.8,2721.3,0.29401]
[1729462484731,2.3178,2721.7,2721.6,0.17506575]
[1729462485136,2.3178,2721.7,2721.2,0.29402]
[1729462485336,2.3178,2721.7,2721.5,0.17506575]
[1729462486337,5.5256,2721.7,2721.6,0.17506575]
[1729462487544,7.4472392,2721.7,2721.6,0.17506575]
[1729462488939,4.2394392,2721.7,2721.6,0.17506575]
[1729462489347,2.3178,2721.7,2721.6,0.17506575]
[1729462489541,4.2366465,2721.7,2721.6,0.17506575]
[1729462491247,1.9188465,2721.7,2721.6,0.17506575]
[1729462491646,2.3622,2722.0,2721.6,0.17506575]
[1729462491647,1.9188465,2721.8,2721.6,0.17506575]
[1729462491845,1.9188465,2721.8,2721.0,8.1699]
[1729462492042,1.9188465,2721.9,2721.7,0.46903575]
[1729462492247,1.9188465,2722.0,2721.9,0.17506575]
[1729462494640,4.3294465,2722.2,2721.9,0.17506575]
[1729462494950,2.39332819,2722.4,2722.2,0.29392]
[1729462494951,1.9188465,2722.4,2722.2,0.29392]
[1729462495143,1.9188465,2722.4,2722.3,0.17506575]
[1729462495344,4.4259465,2722.5,2722.3,0.17506575]
[1729462495545,4.4259465,2722.5,2722.4,0.17506575]
[1729462496247,1.9188465,2722.5,2722.4,0.17506575]
[1729462496452,1.9188465,2722.6,2722.4,0.17506575]
[1729462496748,1.91661506,2722.7,2722.6,0.17506575]
[1729462497651,8.16828819,2722.8,2722.6,0.17506575]
[1729462497856,1.91614482,2722.7,2722.2,0.29391]
[1729462498149,1.91614482,2722.6,2722.1,0.29392]
[1729462498353,8.16828819,2722.8,2722.1,0.29392]
[1729462498354,1.91614482,2722.7,2722.1,0.29392]
[1729462498851,1.91614482,2722.7,2722.6,0.17506575]
[1729462500044,7.39724482,2722.8,2722.6,0.17506575]
[1729462500251,7.39724482,2722.8,2722.7,0.17506575]
[1729462500557,2.3304,2723.0,2722.7,0.17506575]
[1729462500558,4.24654482,2723.0,2722.7,0.17506575]
[1729462500854,2.39332819,2723.1,2722.2,3.2078]
[1729462500855,2.68714819,2723.1,2722.9,0.17506575]
[1729462501049,2.68714819,2723.1,2722.4,0.29389]
[1729462501050,2.68714819,2723.1,2723.0,0.17506575]
[1729462501353,3.95670981,2723.1,2723.0,0.17506575]
[1729462502047,2.68714819,2723.2,2723.0,0.17506575]
[1729462502362,2.68714819,2723.2,2722.2,3.2078]
[1729462502363,2.39332819,2723.2,2722.2,3.2078]
[1729462502558,2.20853055,2723.0,2722.9,0.17506575]
[1729462502752,0.29384,2723.0,2722.9,0.17506575]
[1729462502951,5.60112819,2723.1,2722.9,0.17506575]
[1729462503152,5.89495819,2723.1,2722.9,0.17506575]
[1729462503352,2.20810301,2723.0,2722.9,0.17506575]
[1729462503550,5.60112819,2723.1,2722.2,3.50171]
[1729462503551,0.29385,2722.9,2722.2,3.50172]
[1729462503855,0.29385,2722.9,2722.7,0.17506575]
[1729462503856,1.91395833,2722.9,2722.7,0.17506575]
[1729462504053,2.385,2722.8,2722.7,0.17506575]
[1729462504856,1.91395833,2723.0,2722.8,0.29385]
[1729462505155,2.4269,2723.3,2722.1,0.73482]
[1729462505156,1.91395833,2723.2,2723.0,0.29383]
[1729462505459,1.91395833,2723.3,2723.2,0.17506575]
[1729462505755,1.91395833,2723.6,2723.3,0.29379]
[1729462506157,4.23975833,2723.7,2723.5,0.17506575]
[1729462506356,1.91395833,2723.7,2723.6,0.17506575]
[1729462506552,1.91395833,2723.8,2723.6,0.17506575]
[1729462506861,1.91395833,2723.8,2723.0,3.2078]
[1729462506862,1.91395833,2723.8,2723.2,0.29381]
[1729462507054,1.91395833,2723.8,2723.7,0.17506575]
[1729462507359,2.20770833,2723.8,2723.7,0.17506575]
[1729462507555,2.20770833,2723.8,2722.9,2.3897]
[1729462507556,5.58270288,2723.8,2722.9,2.3897]
[1729462507856,3.2078,2723.6,2723.0,0.29383]
[1729462508059,3.50157,2723.6,2722.9,2.68354]
[1729462508558,5.11930288,2723.6,2722.9,2.68354]
[1729462508864,3.2078,2723.6,2723.0,0.29383]
[1729462509252,3.2078,2723.6,2722.9,2.3897]
[1729462509454,3.50157,2723.6,2722.9,2.68354]
[1729462509662,5.11930288,2723.6,2723.0,0.29383]
[1729462510459,1.91150288,2723.5,2723.0,0.29383]
[1729462510665,3.2078,2723.6,2723.0,0.29383]
[1729462510666,5.11930288,2723.6,2723.0,0.29383]
[1729462510866,5.41307288,2723.6,2723.0,0.29383]
[1729462511363,5.41307288,2723.6,2722.5,4.109]
[1729462511364,0.29385,2722.8,2722.5,4.109]
[1729462511552,3.2078,2723.0,2722.1,2.2835]
[1729462511749,2.3099,2723.2,2722.4,3.2078]
[1729462512165,2.3099,2723.2,2722.7,0.29386]
[1729462512349,2.3099,2723.2,2722.4,3.2078]
[1729462512662,4.22140288,2723.2,2722.4,3.2078]
[1729462512853,4.22140288,2723.2,2722.8,0.29385]
[1729462512854,2.3099,2723.2,2722.8,0.29385]
[1729462513752,1.91150288,2723.4,2723.1,0.29381]
[1729462513953,2.4457,2723.5,2722.7,3.2078]
[1729462514152,2.4457,2723.5,2723.2,0.2938]
[1729462514354,2.4457,2723.5,2722.8,2.3188]
[1729462514567,5.11930288,2723.6,2722.8,2.3188]
[1729462515060,4.30180288,2723.7,2723.2,0.2938]
[1729462515266,4.30180288,2723.7,2723.0,3.50163]
[1729462515564,1.91150288,2723.6,2723.1,0.29382]
[1729462516160,4.30180288,2723.7,2723.0,3.2078]
[1729462516461,4.30180288,2723.7,2722.6,0.29388]
[1729462516462,0.29382,2723.2,2722.6,0.29388]
[1729462516766,1.91150288,2723.3,2723.0,3.2078]
[1729462517057,1.91150288,2723.3,2722.6,3.6728]
[1729462517058,1.91150288,2723.3,2723.2,0.29381]
[1729462517260,1.91150288,2723.4,2722.7,3.2078]
[1729462517560,2.20527288,2723.6,2722.7,3.2078]
[1729462517864,0.29381,2723.3,2722.6,0.29387]
[1729462518063,2.20530288,2723.4,2722.7,0.29386]
[1729462518565,1.91150288,2723.3,2722.8,0.29385]
[1729462518867,1.91150288,2723.3,2722.7,0.29386]
[1729462519568,1.91150288,2723.4,2722.8,0.29385]
[1729462519761,1.91150288,2723.4,2722.5,8.0622]
[1729462519952,1.91150288,2723.5,2723.2,3.2078]
[1729462520159,4.30180288,2723.7,2723.3,0.2938]
[1729462520466,4.59556288,2723.7,2723.1,0.29382]
[1729462520763,4.30180288,2723.7,2723.3,0.2938]
[1729462521161,4.30180288,2723.7,2723.0,7.2842]
[1729462521162,2.3903,2723.7,2723.1,0.29382]
[1729462521363,4.30180288,2723.7,2723.1,0.29382]
[1729462521670,1.91150288,2723.6,2723.1,0.29382]
[1729462521866,1.91150288,2723.6,2723.0,7.2842]
[1729462522368,1.91150288,2723.6,2723.1,0.29381]
[1729462522565,1.91150288,2723.6,2723.2,0.29381]
[1729462522868,1.43694888,2723.4,2723.2,0.29381]
[1729462523058,1.43694888,2723.4,2723.0,7.2842]
[1729462523369,1.43694888,2723.5,2723.3,0.29379]
[1729462523563,1.43694888,2723.4,2723.3,0.29379]
[1729462523864,1.91150288,2723.5,2723.4,0.29379]
[1729462523865,1.43694888,2723.5,2723.4,0.29379]
[1729462524070,1.91150288,2723.5,2723.4,0.29379]
[1729462524252,1.91150288,2723.5,2723.4,3.96579]
[1729462524456,1.91150288,2723.5,2723.4,3.672]
[1729462524865,2.39332819,2723.5,2723.4,3.672]
[1729462525063,2.68710819,2723.5,2723.0,7.2842]
[1729462525267,1.43805243,2723.2,2723.0,7.2842]
[1729462525460,1.43805243,2723.2,2723.1,0.29382]
[1729462526065,1.91740324,2723.2,2723.1,0.29382]
[1729462526366,1.91740324,2723.3,2723.1,0.29382]
[1729462526563,1.43820133,2723.2,2723.1,0.29382]
[1729462526753,1.91740324,2723.2,2723.1,0.29382]
[1729462527666,1.91740324,2723.3,2723.2,0.29381]
[1729462527872,1.91740324,2723.3,2723.1,3.2078]
[1729462528062,1.91740324,2723.3,2723.1,3.50162]
[1729462528268,1.91740324,2723.3,2723.2,0.29381]
[1729462528562,1.91740324,2723.3,2723.0,5.6525]
[1729462528563,1.91740324,2723.4,2723.3,0.2938]
[1729462528770,3.95724483,2723.4,2723.3,0.2938]
[1729462529268,2.39332819,2723.4,2723.3,0.2938]
[1729462529656,3.95724483,2723.4,2723.3,0.2938]
[1729462529860,2.39332819,2723.4,2723.3,0.2938]
[1729462530569,2.39332819,2723.4,2723.2,0.29381]
[1729462531064,2.39332819,2723.4,2723.3,0.2938]
[1729462531467,3.95771121,2723.4,2723.0,2.4447]
[1729462531662,5.55605383,2723.7,2723.0,5.94633]
[1729462531663,1.43881005,2723.2,2723.0,5.94633]
[1729462531858,1.43881005,2723.3,2723.2,0.29381]
[1729462532058,1.9184134,2723.4,2723.2,0.29381]
[1729462532262,1.9184134,2723.3,2723.2,0.29381]
[1729462533365,1.9184134,2723.3,2723.0,5.6525]
[1729462533366,1.9184134,2723.4,2723.3,0.2938]
[1729462533666,3.95829851,2723.5,2723.3,0.2938]
[1729462533859,1.56497032,2723.4,2723.3,0.2938]
[1729462534056,1.91911658,2723.4,2723.3,3.5016]
[1729462534263,1.91911658,2723.5,2723.4,0.29379]
[1729462534665,1.91911658,2723.6,2723.5,0.29378]
[1729462534870,1.56540769,2723.6,2723.3,3.2078]
[1729462535071,1.91941396,2723.5,2723.4,0.29379]
[1729462535272,1.91941396,2723.6,2723.4,3.672]
[1729462535464,1.91941396,2723.6,2723.5,0.29378]
[1729462535770,2.39332819,2723.7,2723.6,0.29377]
[1729462536464,2.39332819,2723.7,2723.6,7.17277]
[1729462536671,1.92017283,2723.7,2723.6,3.2078]
[1729462536973,1.92017283,2723.7,2723.6,3.50157]
[1729462537166,2.39332819,2723.7,2723.6,7.17277]
[1729462537466,2.4023,2723.9,2723.8,0.29375]
[1729462537659,2.87199383,2724.0,2723.8,0.29375]
[1729462537863,4.30799075,2724.4,2723.9,6.879]
[1729462537864,2.87199383,2724.2,2723.9,6.879]
[1729462538063,2.87199383,2724.3,2724.2,0.2937]
[1729462538257,6.2226533,2724.3,2724.2,0.2937]
[1729462538468,5.8322282,2724.3,2724.2,0.2937]
[1729462538674,5.36259577,2724.3,2724.2,0.2937]
[1729462538870,2.88102704,2724.3,2724.2,0.2937]
[1729462539068,2.88102704,2724.4,2724.2,0.2937]
[1729462539564,2.88172684,2724.4,2724.2,0.2937]
[1729462539766,2.48201076,2724.3,2723.9,3.2078]
[1729462539967,5.36325297,2724.2,2724.1,0.29371]
[1729462540173,0.29366,2724.6,2723.9,3.2078]
[1729462540466,0.29366,2724.6,2723.7,8.02567]
[1729462540467,4.7951,2724.8,2724.1,3.2078]
[1729462540676,4.7951,2724.8,2724.7,0.29365]
[1729462541061,3.2078,2725.3,2724.5,3.2078]
[1729462541268,3.2078,2725.3,2724.8,3.2078]
[1729462541568,2.34,2725.4,2724.8,3.2078]
[1729462541775,2.88236402,2724.9,2724.8,3.2078]
[1729462541970,2.88236402,2725.0,2724.9,0.29363]
[1729462542269,2.88236402,2725.1,2725.0,0.29362]
[1729462542473,5.77347241,2725.2,2724.9,3.6696]
[1729462542662,5.77347241,2725.2,2724.6,2.285]
[1729462542663,2.88109465,2725.2,2725.1,3.2078]
[1729462542863,5.28921331,2725.2,2725.1,3.2078]
[1729462543071,2.40811866,2725.2,2724.7,3.2078]
[1729462543265,2.40811866,2725.2,2724.7,3.50145]
[1729462543266,2.40044207,2724.8,2724.7,3.50145]
[1729462543465,2.40069244,2724.9,2724.7,3.50145]
[1729462543671,2.40069244,2724.9,2724.8,0.29364]
[1729462543876,2.40069244,2724.9,2724.8,3.96324]
[1729462544375,2.39926292,2725.0,2724.9,0.29363]
[1729462544573,2.88053049,2725.3,2725.2,0.2936]
[1729462544773,3.36275803,2725.4,2725.3,0.29358]
[1729462544971,2.87742871,2725.5,2725.4,0.29357]
[1729462545175,2.87742871,2725.5,2725.4,1.75652956]
[1729462545369,2.37336584,2725.5,2725.4,0.29357]
[1729462545679,3.35659762,2725.6,2725.4,3.6688]
[1729462545862,3.35659762,2725.6,2725.5,0.29356]
[1729462546063,3.35659762,2725.6,2725.3,2.5078]
[1729462546064,3.35659762,2725.7,2725.6,0.29355]
[1729462546270,3.35659762,2725.7,2725.5,3.50136]
[1729462546477,2.8762323,2725.8,2725.5,3.50136]
[1729462546478,0.29354,2725.8,2725.5,3.50136]
[1729462546777,2.8762323,2725.7,2725.5,3.50136]
[1729462547277,3.1697723,2725.7,2725.5,3.2078]
[1729462547475,0.29354,2725.7,2725.5,3.2078]
[1729462547772,0.29354,2725.7,2725.3,0.29358]
[1729462547773,2.18080261,2725.6,2725.3,0.29358]
[1729462547979,0.29356,2725.6,2724.9,3.2078]
[1729462548170,2.8762323,2725.7,2724.9,5.53243]
[1729462548171,1.43662731,2725.0,2724.9,5.53243]
[1729462548581,1.43662731,2725.1,2725.0,0.29362]
[1729462548771,1.43662731,2725.3,2725.2,0.2936]
[1729462549074,1.43662731,2725.3,2725.2,3.5014]
[1729462549265,3.35659762,2726.1,2725.2,6.8774]
[1729462549468,3.35659762,2726.1,2724.9,2.031]
[1729462549469,2.8762323,2725.8,2725.5,3.50136]
[1729462549672,5.53737023,2725.9,2725.6,0.29355]
[1729462549673,2.18076261,2725.9,2725.6,0.29355]
[1729462550279,0.29356,2725.6,2725.3,0.29358]
[1729462550477,1.88724261,2725.4,2724.9,5.2378]
[1729462550678,1.914093,2725.3,2725.2,3.5014]
[1729462550982,1.88724261,2725.7,2725.2,3.5014]
[1729462550983,1.914093,2725.4,2725.3,0.29358]
[1729462551380,1.914093,2725.4,2725.3,3.96318]
[1729462551583,1.914093,2725.5,2725.4,0.29357]
[1729462551778,6.3775423,2726.0,2725.5,0.29356]